[Event "Titled Tuesday Blitz October 31 Early 2023"]
[White "Girinath, P.D.S."]
[Black "Pinheiro, Iung Alicio de O."]
[WhiteFideId "5000572"]
[BlackFideId "2104350"]
[WhiteElo "2378"]
[BlackElo "2622"]
[Result "1/2-1/2"]
[Round "8"]
[TimeControl "180+1"]
[Date "2023.10.31"]
[WhiteClock "0:00:02"]
[BlackClock "0:00:14"]
[Board "71"]

1. e4 {[%clk 0:03:00]}  c6 {[%clk 0:02:53]} 2. d4 {[%clk 0:02:56]}  d5 {[%clk 0:02:53]} 3. exd5 {[%clk 0:02:57]}  cxd5 {[%clk 0:02:53]} 4. c4 {[%clk 0:02:58]}  Nf6 {[%clk 0:02:52]} 5. Nc3 {[%clk 0:02:58]}  Nc6 {[%clk 0:02:52]} 6. Nf3 {[%clk 0:02:56]}  Be6 {[%clk 0:02:52]} 7. c5 {[%clk 0:02:54]}  a6 {[%clk 0:02:52]} 8. h3 {[%clk 0:02:44]}  Bf5 {[%clk 0:02:47]} 9. Bd3 {[%clk 0:02:43]}  Bxd3 {[%clk 0:02:41]} 10. Qxd3 {[%clk 0:02:44]}  g6 {[%clk 0:02:40]} 11. O-O {[%clk 0:02:37]}  Bg7 {[%clk 0:02:39]} 12. Bf4 {[%clk 0:02:35]}  O-O {[%clk 0:02:39]} 13. Rfe1 {[%clk 0:02:36]}  Nh5 {[%clk 0:02:20]} 14. Bh2 {[%clk 0:02:34]}  Re8 {[%clk 0:02:18]} 15. Na4 {[%clk 0:02:25]}  Nf6 {[%clk 0:02:04]} 16. Nb6 {[%clk 0:02:22]}  Ra7 {[%clk 0:02:04]} 17. Ne5 {[%clk 0:02:20]}  e6 {[%clk 0:01:56]} 18. f3 {[%clk 0:01:53]}  Nxe5 {[%clk 0:01:39]} 19. Bxe5 {[%clk 0:01:51]}  Nd7 {[%clk 0:01:40]} 20. Nxd7 {[%clk 0:01:45]}  Qxd7 {[%clk 0:01:39]} 21. Bxg7 {[%clk 0:01:45]}  Kxg7 {[%clk 0:01:40]} 22. Re3 {[%clk 0:01:41]}  Raa8 {[%clk 0:01:37]} 23. b4 {[%clk 0:01:35]}  Qb5 {[%clk 0:01:28]} 24. Qxb5 {[%clk 0:01:01]}  axb5 {[%clk 0:01:26]} 25. a3 {[%clk 0:01:01]}  Ra4 {[%clk 0:01:23]} 26. Rc1 {[%clk 0:01:01]}  Rea8 {[%clk 0:01:21]} 27. Rcc3 {[%clk 0:00:59]}  R4a6 {[%clk 0:01:19]} 28. f4 {[%clk 0:00:58]}  f6 {[%clk 0:01:12]} 29. Kf2 {[%clk 0:00:51]}  Kf7 {[%clk 0:01:04]} 30. g4 {[%clk 0:00:49]}  Rh8 {[%clk 0:00:59]} 31. g5 {[%clk 0:00:42]}  f5 {[%clk 0:00:54]} 32. h4 {[%clk 0:00:36]}  h6 {[%clk 0:00:53]} 33. Kg2 {[%clk 0:00:36]}  hxg5 {[%clk 0:00:53]} 34. hxg5 {[%clk 0:00:37]}  Rh4 {[%clk 0:00:52]} 35. Rf3 {[%clk 0:00:37]}  Rg4+ {[%clk 0:00:46]} 36. Kf2 {[%clk 0:00:36]}  Rc6 {[%clk 0:00:41]} 37. Ke3 {[%clk 0:00:21]}  Rh4 {[%clk 0:00:36]} 38. Kf2 {[%clk 0:00:18]}  Rc8 {[%clk 0:00:35]} 39. Ke3 {[%clk 0:00:15]}  Ke7 {[%clk 0:00:33]} 40. Kd3 {[%clk 0:00:13]}  Kd7 {[%clk 0:00:31]} 41. Kc2 {[%clk 0:00:13]}  Rch8 {[%clk 0:00:29]} 42. Kb3 {[%clk 0:00:10]}  Rg4 {[%clk 0:00:28]} 43. a4 {[%clk 0:00:10]}  bxa4+ {[%clk 0:00:27]} 44. Kxa4 {[%clk 0:00:11]}  Rhh4 {[%clk 0:00:27]} 45. Kb5 {[%clk 0:00:08]}  Kc7 {[%clk 0:00:27]} 46. Rce3 {[%clk 0:00:05]}  Kd7 {[%clk 0:00:24]} 47. Kb6 {[%clk 0:00:04]}  Rxf4 {[%clk 0:00:24]} 48. Rxf4 {[%clk 0:00:05]}  Rxf4 {[%clk 0:00:25]} 49. Kxb7 {[%clk 0:00:04]}  Rxd4 {[%clk 0:00:26]} 50. b5 {[%clk 0:00:05]}  f4 {[%clk 0:00:24]} 51. Rh3 {[%clk 0:00:04]}  e5 {[%clk 0:00:24]} 52. Rh7+ {[%clk 0:00:04]}  Ke6 {[%clk 0:00:24]} 53. c6 {[%clk 0:00:05]}  f3 {[%clk 0:00:23]} 54. c7 {[%clk 0:00:05]}  Rc4 {[%clk 0:00:23]} 55. c8=Q+ {[%clk 0:00:05]}  Rxc8 {[%clk 0:00:23]} 56. Kxc8 {[%clk 0:00:06]}  f2 {[%clk 0:00:24]} 57. Rh1 {[%clk 0:00:05]}  e4 {[%clk 0:00:24]} 58. b6 {[%clk 0:00:03]}  e3 {[%clk 0:00:25]} 59. b7 {[%clk 0:00:04]}  e2 {[%clk 0:00:25]} 60. b8=Q {[%clk 0:00:05]}  f1=Q {[%clk 0:00:26]} 61. Qb6+ {[%clk 0:00:04]}  Ke5 {[%clk 0:00:16]} 62. Qc7+ {[%clk 0:00:04]}  Ke4 {[%clk 0:00:16]} 63. Qe7+ {[%clk 0:00:03]}  Kd3 {[%clk 0:00:16]} 64. Qa3+ {[%clk 0:00:03]}  Ke4 {[%clk 0:00:14]} 65. Qe7+ {[%clk 0:00:03]}  Kd3 {[%clk 0:00:14]} 66. Qa3+ {[%clk 0:00:02]}  Ke4 {[%clk 0:00:14]} 67. Qe7+ {[%clk 0:00:02]} 1/2-1/2


[Site "https://www.chess.com"]

[Event "Titled Tuesday Blitz October 31 Early 2023"]
[White "Golizadeh, Asghar"]
[Black "sjoerd893"]
[WhiteFideId "12505269"]
[WhiteElo "2758"]
[BlackElo "2526"]
[Result "1-0"]
[Round "8"]
[TimeControl "180+1"]
[Date "2023.10.31"]
[WhiteClock "0:01:48"]
[BlackClock "0:00:10"]
[Board "73"]

1. e4 {[%clk 0:02:59]}  c5 {[%clk 0:02:57]} 2. Nc3 {[%clk 0:03:00]}  Nc6 {[%clk 0:02:56]} 3. f4 {[%clk 0:03:01]}  g6 {[%clk 0:02:55]} 4. Nf3 {[%clk 0:03:01]}  Bg7 {[%clk 0:02:56]} 5. Bb5 {[%clk 0:03:02]}  Nd4 {[%clk 0:02:54]} 6. O-O {[%clk 0:03:02]}  Nxb5 {[%clk 0:02:39]} 7. Nxb5 {[%clk 0:03:02]}  a6 {[%clk 0:02:40]} 8. Nc3 {[%clk 0:03:02]}  e6 {[%clk 0:02:41]} 9. e5 {[%clk 0:03:02]}  d5 {[%clk 0:02:39]} 10. d4 {[%clk 0:02:59]}  cxd4 {[%clk 0:02:32]} 11. Nxd4 {[%clk 0:02:59]}  Ne7 {[%clk 0:02:32]} 12. Be3 {[%clk 0:03:00]}  Nf5 {[%clk 0:02:17]} 13. Nxf5 {[%clk 0:02:59]}  gxf5 {[%clk 0:02:17]} 14. a4 {[%clk 0:02:59]}  O-O {[%clk 0:02:08]} 15. a5 {[%clk 0:02:58]}  Bd7 {[%clk 0:02:05]} 16. Qh5 {[%clk 0:02:57]}  f6 {[%clk 0:01:55]} 17. exf6 {[%clk 0:02:48]}  Rxf6 {[%clk 0:01:50]} 18. Bd4 {[%clk 0:02:39]}  Rh6 {[%clk 0:01:45]} 19. Qd1 {[%clk 0:02:39]}  Qh4 {[%clk 0:01:28]} 20. h3 {[%clk 0:02:40]}  Rg6 {[%clk 0:01:18]} 21. Rf3 {[%clk 0:02:33]}  Kf7 {[%clk 0:00:55]} 22. Bxg7 {[%clk 0:02:32]}  Rxg7 {[%clk 0:00:54]} 23. Qe1 {[%clk 0:02:28]}  Qxe1+ {[%clk 0:00:45]} 24. Rxe1 {[%clk 0:02:28]}  d4 {[%clk 0:00:45]} 25. Ne2 {[%clk 0:02:22]}  Bc6 {[%clk 0:00:46]} 26. Nxd4 {[%clk 0:02:00]}  Bxf3 {[%clk 0:00:36]} 27. Nxf3 {[%clk 0:02:00]}  Rd8 {[%clk 0:00:30]} 28. Ng5+ {[%clk 0:01:59]}  Rxg5 {[%clk 0:00:28]} 29. fxg5 {[%clk 0:02:00]}  Rd2 {[%clk 0:00:29]} 30. Re3 {[%clk 0:01:50]}  Rxc2 {[%clk 0:00:26]} 31. Rb3 {[%clk 0:01:51]}  Rc7 {[%clk 0:00:25]} 32. Rb6 {[%clk 0:01:51]}  Re7 {[%clk 0:00:22]} 33. Kf2 {[%clk 0:01:49]}  Kg6 {[%clk 0:00:21]} 34. h4 {[%clk 0:01:50]}  Kh5 {[%clk 0:00:21]} 35. g3 {[%clk 0:01:50]}  e5 {[%clk 0:00:18]} 36. Kf3 {[%clk 0:01:48]}  e4+ {[%clk 0:00:09]} 37. Kf4 {[%clk 0:01:48]}  e3 {[%clk 0:00:10]} 38. Rh6# {[%clk 0:01:48]} 1-0


[Site "https://www.chess.com"]

[Event "Titled Tuesday Blitz October 31 Early 2023"]
[White "Wizard_97"]
[Black "Heinemann, Josefine"]
[BlackFideId "12900460"]
[WhiteElo "2613"]
[BlackElo "2512"]
[Result "1-0"]
[Round "8"]
[TimeControl "180+1"]
[Date "2023.10.31"]
[WhiteClock "0:02:47"]
[BlackClock "0:02:48"]
[Board "75"]

1. e4 {[%clk 0:02:56]}  c6 {[%clk 0:02:58]} 2. d4 {[%clk 0:02:55]}  d5 {[%clk 0:02:57]} 3. Nd2 {[%clk 0:02:56]}  dxe4 {[%clk 0:02:57]} 4. Nxe4 {[%clk 0:02:57]}  Nf6 {[%clk 0:02:57]} 5. Nxf6+ {[%clk 0:02:57]}  exf6 {[%clk 0:02:58]} 6. c3 {[%clk 0:02:58]}  Bd6 {[%clk 0:02:58]} 7. Bd3 {[%clk 0:02:58]}  O-O {[%clk 0:02:59]} 8. Ne2 {[%clk 0:02:55]}  c5 {[%clk 0:02:58]} 9. O-O {[%clk 0:02:54]}  cxd4 {[%clk 0:02:58]} 10. Nxd4 {[%clk 0:02:55]}  h6 {[%clk 0:02:58]} 11. Nf5 {[%clk 0:02:53]}  Bxf5 {[%clk 0:02:57]} 12. Bxf5 {[%clk 0:02:54]}  Nc6 {[%clk 0:02:57]} 13. Be4 {[%clk 0:02:54]}  Qc7 {[%clk 0:02:56]} 14. h3 {[%clk 0:02:54]}  Rad8 {[%clk 0:02:56]} 15. Qc2 {[%clk 0:02:52]}  Rfe8 {[%clk 0:02:57]} 16. Be3 {[%clk 0:02:53]}  b6 {[%clk 0:02:55]} 17. Rad1 {[%clk 0:02:52]}  Bf4 {[%clk 0:02:48]} 18. Bxf4 {[%clk 0:02:47]} 1-0


[Site "https://www.chess.com"]

[Event "Titled Tuesday Blitz October 31 Early 2023"]
[White "Pinero Rodriguez, Carlos Jose"]
[Black "Omelja, Artem"]
[WhiteFideId "3901726"]
[BlackFideId "14119846"]
[WhiteElo "2496"]
[BlackElo "2574"]
[Result "0-1"]
[Round "8"]
[TimeControl "180+1"]
[Date "2023.10.31"]
[WhiteClock "0:00:00"]
[BlackClock "0:02:00"]
[Board "77"]

1. e4 {[%clk 0:03:00]}  c5 {[%clk 0:02:59]} 2. Nf3 {[%clk 0:03:00]}  Nc6 {[%clk 0:02:59]} 3. d4 {[%clk 0:03:00]}  cxd4 {[%clk 0:03:00]} 4. Nxd4 {[%clk 0:03:01]}  Nf6 {[%clk 0:03:01]} 5. Nc3 {[%clk 0:03:01]}  e5 {[%clk 0:03:01]} 6. Ndb5 {[%clk 0:03:01]}  d6 {[%clk 0:03:01]} 7. Bg5 {[%clk 0:03:01]}  a6 {[%clk 0:03:01]} 8. Na3 {[%clk 0:03:01]}  b5 {[%clk 0:03:02]} 9. Nd5 {[%clk 0:03:01]}  Be7 {[%clk 0:03:02]} 10. Bxf6 {[%clk 0:03:02]}  Bxf6 {[%clk 0:03:02]} 11. c3 {[%clk 0:03:03]}  O-O {[%clk 0:03:01]} 12. Nc2 {[%clk 0:03:03]}  Bg5 {[%clk 0:03:01]} 13. a4 {[%clk 0:03:02]}  bxa4 {[%clk 0:02:56]} 14. Rxa4 {[%clk 0:03:03]}  Bb7 {[%clk 0:02:53]} 15. b4 {[%clk 0:02:53]}  Ne7 {[%clk 0:02:49]} 16. Bc4 {[%clk 0:02:50]}  Kh8 {[%clk 0:02:43]} 17. O-O {[%clk 0:02:44]}  f5 {[%clk 0:02:23]} 18. Nxe7 {[%clk 0:01:53]}  Qxe7 {[%clk 0:01:59]} 19. Bd5 {[%clk 0:01:37]}  fxe4 {[%clk 0:01:58]} 20. Bxb7 {[%clk 0:01:37]}  Qxb7 {[%clk 0:01:59]} 21. Qxd6 {[%clk 0:01:37]}  e3 {[%clk 0:01:59]} 22. Nxe3 {[%clk 0:01:25]}  Bxe3 {[%clk 0:01:58]} 23. fxe3 {[%clk 0:01:25]}  Rxf1+ {[%clk 0:01:59]} 24. Kxf1 {[%clk 0:00:00]}  Qb5+ {[%clk 0:02:00]} 0-1


[Site "https://www.chess.com"]

[Event "Titled Tuesday Blitz October 31 Early 2023"]
[White "Miszler, Levente"]
[Black "Kiremitciyan, Ari"]
[WhiteFideId "763276"]
[BlackFideId "6373445"]
[WhiteElo "2437"]
[BlackElo "2559"]
[Result "0-1"]
[Round "8"]
[TimeControl "180+1"]
[Date "2023.10.31"]
[WhiteClock "0:00:57"]
[BlackClock "0:01:21"]
[Board "80"]

1. Nf3 {[%clk 0:03:00]}  g6 {[%clk 0:02:59]} 2. c4 {[%clk 0:02:58]}  Bg7 {[%clk 0:02:59]} 3. g3 {[%clk 0:02:59]}  d6 {[%clk 0:02:58]} 4. Bg2 {[%clk 0:02:59]}  e5 {[%clk 0:02:59]} 5. O-O {[%clk 0:02:59]}  Ne7 {[%clk 0:02:57]} 6. Nc3 {[%clk 0:02:59]}  O-O {[%clk 0:02:58]} 7. d4 {[%clk 0:02:59]}  Nbc6 {[%clk 0:02:57]} 8. d5 {[%clk 0:02:57]}  Nb8 {[%clk 0:02:56]} 9. e4 {[%clk 0:02:57]}  h6 {[%clk 0:02:56]} 10. Qc2 {[%clk 0:02:50]}  f5 {[%clk 0:02:56]} 11. exf5 {[%clk 0:02:50]}  gxf5 {[%clk 0:02:53]} 12. Nd2 {[%clk 0:02:49]}  Nd7 {[%clk 0:02:53]} 13. f4 {[%clk 0:02:49]}  e4 {[%clk 0:02:52]} 14. Nb3 {[%clk 0:02:45]}  Nf6 {[%clk 0:02:51]} 15. h3 {[%clk 0:02:42]}  h5 {[%clk 0:02:51]} 16. Be3 {[%clk 0:02:40]}  c5 {[%clk 0:02:38]} 17. dxc6 {[%clk 0:02:37]}  bxc6 {[%clk 0:02:39]} 18. Rad1 {[%clk 0:02:35]}  Qc7 {[%clk 0:02:39]} 19. Nd4 {[%clk 0:02:33]}  Bd7 {[%clk 0:02:26]} 20. b3 {[%clk 0:02:19]}  Rfd8 {[%clk 0:02:25]} 21. Na4 {[%clk 0:02:17]}  Be8 {[%clk 0:02:20]} 22. c5 {[%clk 0:02:14]}  Nfd5 {[%clk 0:01:58]} 23. Rfe1 {[%clk 0:01:55]}  Nxe3 {[%clk 0:01:52]} 24. Rxe3 {[%clk 0:01:55]}  Bxd4 {[%clk 0:01:50]} 25. Rxd4 {[%clk 0:01:55]}  d5 {[%clk 0:01:50]} 26. g4 {[%clk 0:01:52]}  Qxf4 {[%clk 0:01:48]} 27. Qe2 {[%clk 0:01:41]}  Qe5 {[%clk 0:01:45]} 28. Rd1 {[%clk 0:01:32]}  f4 {[%clk 0:01:46]} 29. Rc3 {[%clk 0:01:19]}  h4 {[%clk 0:01:37]} 30. Rc2 {[%clk 0:01:12]}  Ng6 {[%clk 0:01:37]} 31. Rcd2 {[%clk 0:01:12]}  Bf7 {[%clk 0:01:28]} 32. Rd4 {[%clk 0:01:04]}  f3 {[%clk 0:01:26]} 33. Bxf3 {[%clk 0:01:04]}  exf3 {[%clk 0:01:27]} 34. Qxf3 {[%clk 0:01:05]}  Qg3+ {[%clk 0:01:22]} 35. Qxg3 {[%clk 0:01:05]}  hxg3 {[%clk 0:01:23]} 36. Kg2 {[%clk 0:01:06]}  Re8 {[%clk 0:01:20]} 37. Kxg3 {[%clk 0:01:04]}  Re3+ {[%clk 0:01:21]} 38. Kf2 {[%clk 0:00:57]}  Rxh3 {[%clk 0:01:21]} 0-1


[Site "https://www.chess.com"]

[Event "Titled Tuesday Blitz October 31 Early 2023"]
[White "Toropov, Pavel"]
[Black "UK_23"]
[WhiteFideId "24129178"]
[WhiteElo "2548"]
[BlackElo "2407"]
[Result "1-0"]
[Round "8"]
[TimeControl "180+1"]
[Date "2023.10.31"]
[WhiteClock "0:02:20"]
[BlackClock "0:01:50"]
[Board "81"]

1. e4 {[%clk 0:03:00]}  e5 {[%clk 0:02:50]} 2. Nf3 {[%clk 0:02:59]}  Nc6 {[%clk 0:02:50]} 3. d4 {[%clk 0:03:00]}  exd4 {[%clk 0:02:50]} 4. Nxd4 {[%clk 0:03:01]}  Nf6 {[%clk 0:02:49]} 5. Nc3 {[%clk 0:03:01]}  Bb4 {[%clk 0:02:48]} 6. Nxc6 {[%clk 0:03:02]}  bxc6 {[%clk 0:02:48]} 7. Bd3 {[%clk 0:03:00]}  d5 {[%clk 0:02:48]} 8. exd5 {[%clk 0:03:01]}  O-O {[%clk 0:02:49]} 9. O-O {[%clk 0:03:00]}  Bg4 {[%clk 0:02:48]} 10. f3 {[%clk 0:02:53]}  Bh5 {[%clk 0:02:47]} 11. dxc6 {[%clk 0:02:52]}  Qd4+ {[%clk 0:02:45]} 12. Kh1 {[%clk 0:02:51]}  Bxc3 {[%clk 0:02:45]} 13. bxc3 {[%clk 0:02:51]}  Qxc3 {[%clk 0:02:45]} 14. Rb1 {[%clk 0:02:52]}  Qxc6 {[%clk 0:02:42]} 15. Bb2 {[%clk 0:02:52]}  Rad8 {[%clk 0:02:41]} 16. Qc1 {[%clk 0:02:43]}  Bg6 {[%clk 0:02:41]} 17. Rd1 {[%clk 0:02:35]}  Nd5 {[%clk 0:02:19]} 18. Bxg6 {[%clk 0:02:22]}  hxg6 {[%clk 0:02:18]} 19. c4 {[%clk 0:02:22]}  Nb4 {[%clk 0:01:50]} 20. Qc3 {[%clk 0:02:20]} 1-0


[Site "https://www.chess.com"]

[Event "Titled Tuesday Blitz October 31 Early 2023"]
[White "alfianasybullina"]
[Black "chess123456s"]
[WhiteElo "2311"]
[BlackElo "2538"]
[Result "0-1"]
[Round "8"]
[TimeControl "180+1"]
[Date "2023.10.31"]
[WhiteClock "0:00:15"]
[BlackClock "0:00:29"]
[Board "83"]

1. d4 {[%clk 0:03:00]}  d5 {[%clk 0:03:00]} 2. Nf3 {[%clk 0:03:00]}  Nf6 {[%clk 0:03:00]} 3. c3 {[%clk 0:03:01]}  e6 {[%clk 0:03:00]} 4. Bf4 {[%clk 0:02:58]}  c5 {[%clk 0:03:01]} 5. h3 {[%clk 0:02:57]}  Nc6 {[%clk 0:03:01]} 6. e3 {[%clk 0:02:55]}  Bd6 {[%clk 0:03:01]} 7. dxc5 {[%clk 0:02:48]}  Bxc5 {[%clk 0:02:58]} 8. Nbd2 {[%clk 0:02:48]}  Bd6 {[%clk 0:02:57]} 9. Bd3 {[%clk 0:02:43]}  e5 {[%clk 0:02:53]} 10. Bg5 {[%clk 0:02:33]}  e4 {[%clk 0:02:50]} 11. Bxf6 {[%clk 0:02:33]}  gxf6 {[%clk 0:02:48]} 12. Bxe4 {[%clk 0:02:32]}  dxe4 {[%clk 0:02:48]} 13. Nxe4 {[%clk 0:02:33]}  Be7 {[%clk 0:02:48]} 14. Qb3 {[%clk 0:02:30]}  Qb6 {[%clk 0:02:47]} 15. Qxb6 {[%clk 0:02:21]}  axb6 {[%clk 0:02:47]} 16. a3 {[%clk 0:02:18]}  Be6 {[%clk 0:02:47]} 17. Rd1 {[%clk 0:02:18]}  Na5 {[%clk 0:02:41]} 18. O-O {[%clk 0:02:15]}  Nc4 {[%clk 0:02:40]} 19. Nd4 {[%clk 0:02:10]}  O-O {[%clk 0:02:30]} 20. Nxe6 {[%clk 0:02:09]}  fxe6 {[%clk 0:02:30]} 21. Rd7 {[%clk 0:02:09]}  Rf7 {[%clk 0:02:28]} 22. Rxb7 {[%clk 0:02:03]}  Bc5 {[%clk 0:02:16]} 23. Nxc5 {[%clk 0:01:43]}  bxc5 {[%clk 0:02:17]} 24. Rb5 {[%clk 0:01:43]}  Rc7 {[%clk 0:02:10]} 25. Rd1 {[%clk 0:01:42]}  Kf7 {[%clk 0:02:03]} 26. a4 {[%clk 0:01:43]}  Ke7 {[%clk 0:02:01]} 27. b3 {[%clk 0:01:43]}  Nd6 {[%clk 0:01:56]} 28. Rb6 {[%clk 0:01:35]}  Nc8 {[%clk 0:01:53]} 29. Rb5 {[%clk 0:01:35]}  c4 {[%clk 0:01:53]} 30. bxc4 {[%clk 0:01:31]}  Rxa4 {[%clk 0:01:52]} 31. c5 {[%clk 0:01:29]}  Rc4 {[%clk 0:01:51]} 32. Rd4 {[%clk 0:01:25]}  Rxc3 {[%clk 0:01:51]} 33. Rh4 {[%clk 0:01:25]}  Ke8 {[%clk 0:01:51]} 34. Kh2 {[%clk 0:01:23]}  Kf8 {[%clk 0:01:45]} 35. Re4 {[%clk 0:01:08]}  Kf7 {[%clk 0:01:40]} 36. Rh4 {[%clk 0:01:06]}  Kg8 {[%clk 0:01:40]} 37. Rg4+ {[%clk 0:00:56]}  Kh8 {[%clk 0:01:38]} 38. Rf4 {[%clk 0:00:51]}  f5 {[%clk 0:01:34]} 39. g4 {[%clk 0:00:51]}  R3xc5 {[%clk 0:01:30]} 40. Rb8 {[%clk 0:00:48]}  Kg7 {[%clk 0:01:27]} 41. Kg3 {[%clk 0:00:45]}  Ne7 {[%clk 0:01:26]} 42. g5 {[%clk 0:00:43]}  Rc4 {[%clk 0:01:17]} 43. Rxc4 {[%clk 0:00:38]}  Rxc4 {[%clk 0:01:18]} 44. Rb7 {[%clk 0:00:39]}  Kf7 {[%clk 0:01:18]} 45. h4 {[%clk 0:00:35]}  Rc1 {[%clk 0:01:14]} 46. Kg2 {[%clk 0:00:34]}  e5 {[%clk 0:01:03]} 47. h5 {[%clk 0:00:32]}  Rc6 {[%clk 0:01:02]} 48. Ra7 {[%clk 0:00:31]}  e4 {[%clk 0:00:59]} 49. Kg3 {[%clk 0:00:31]}  Ke6 {[%clk 0:00:58]} 50. h6 {[%clk 0:00:26]}  Rc1 {[%clk 0:00:49]} 51. Kg2 {[%clk 0:00:23]}  Rc8 {[%clk 0:00:46]} 52. Ra6+ {[%clk 0:00:23]}  Kf7 {[%clk 0:00:40]} 53. Ra7 {[%clk 0:00:23]}  Rg8 {[%clk 0:00:39]} 54. Kg3 {[%clk 0:00:21]}  Rxg5+ {[%clk 0:00:39]} 55. Kf4 {[%clk 0:00:21]}  Rh5 {[%clk 0:00:40]} 56. Ke5 {[%clk 0:00:21]}  Rxh6 {[%clk 0:00:40]} 57. Rb7 {[%clk 0:00:20]}  Re6+ {[%clk 0:00:38]} 58. Kf4 {[%clk 0:00:20]}  Kf6 {[%clk 0:00:38]} 59. Kg3 {[%clk 0:00:20]}  h6 {[%clk 0:00:36]} 60. Ra7 {[%clk 0:00:20]}  Ng6 {[%clk 0:00:36]} 61. Rh7 {[%clk 0:00:20]}  Kg5 {[%clk 0:00:36]} 62. Rg7 {[%clk 0:00:20]}  Rc6 {[%clk 0:00:36]} 63. Rh7 {[%clk 0:00:20]}  Rc1 {[%clk 0:00:36]} 64. Kg2 {[%clk 0:00:20]}  h5 {[%clk 0:00:36]} 65. Rg7 {[%clk 0:00:20]}  h4 {[%clk 0:00:37]} 66. Kh2 {[%clk 0:00:20]}  Rc2 {[%clk 0:00:37]} 67. Kg2 {[%clk 0:00:20]}  Kf6 {[%clk 0:00:35]} 68. Rg8 {[%clk 0:00:20]}  Ne5 {[%clk 0:00:35]} 69. Rf8+ {[%clk 0:00:20]}  Ke6 {[%clk 0:00:33]} 70. Re8+ {[%clk 0:00:20]}  Kd6 {[%clk 0:00:30]} 71. Rd8+ {[%clk 0:00:21]}  Ke7 {[%clk 0:00:30]} 72. Rh8 {[%clk 0:00:20]}  Ng4 {[%clk 0:00:29]} 73. Rh7+ {[%clk 0:00:19]}  Kf6 {[%clk 0:00:29]} 74. Rxh4 {[%clk 0:00:19]}  Rxf2+ {[%clk 0:00:29]} 75. Kg1 {[%clk 0:00:15]}  Rf3 {[%clk 0:00:29]} 0-1


[Site "https://www.chess.com"]

[Event "Titled Tuesday Blitz October 31 Early 2023"]
[White "Tologon tegin, Semetei"]
[Black "chessculator16"]
[WhiteFideId "13800574"]
[WhiteElo "2528"]
[BlackElo "2350"]
[Result "1/2-1/2"]
[Round "8"]
[TimeControl "180+1"]
[Date "2023.10.31"]
[WhiteClock "0:00:40"]
[BlackClock "0:01:02"]
[Board "84"]

1. Nc3 {[%clk 0:03:00]}  d5 {[%clk 0:02:59]} 2. Nf3 {[%clk 0:02:58]}  Nf6 {[%clk 0:02:58]} 3. d4 {[%clk 0:02:56]}  c6 {[%clk 0:02:58]} 4. Bg5 {[%clk 0:02:55]}  Bg4 {[%clk 0:02:58]} 5. e3 {[%clk 0:02:55]}  Nbd7 {[%clk 0:02:57]} 6. h3 {[%clk 0:02:55]}  Bh5 {[%clk 0:02:57]} 7. g4 {[%clk 0:02:52]}  Bg6 {[%clk 0:02:57]} 8. Ne5 {[%clk 0:02:53]}  Nxe5 {[%clk 0:02:54]} 9. dxe5 {[%clk 0:02:54]}  Nd7 {[%clk 0:02:54]} 10. f4 {[%clk 0:02:51]}  f6 {[%clk 0:02:54]} 11. e6 {[%clk 0:02:42]}  fxg5 {[%clk 0:02:53]} 12. exd7+ {[%clk 0:02:42]}  Qxd7 {[%clk 0:02:54]} 13. f5 {[%clk 0:02:43]}  Bf7 {[%clk 0:02:53]} 14. e4 {[%clk 0:02:38]}  dxe4 {[%clk 0:02:44]} 15. Qxd7+ {[%clk 0:02:37]}  Kxd7 {[%clk 0:02:45]} 16. Nxe4 {[%clk 0:02:37]}  h6 {[%clk 0:02:45]} 17. O-O-O+ {[%clk 0:02:32]}  Kc7 {[%clk 0:02:44]} 18. Nc5 {[%clk 0:02:17]}  Bd5 {[%clk 0:02:36]} 19. Ne6+ {[%clk 0:02:17]}  Kb6 {[%clk 0:02:18]} 20. Rh2 {[%clk 0:02:16]}  g6 {[%clk 0:02:15]} 21. Bd3 {[%clk 0:02:10]}  gxf5 {[%clk 0:02:14]} 22. Bxf5 {[%clk 0:02:06]}  h5 {[%clk 0:02:10]} 23. Rf2 {[%clk 0:01:45]}  Bxe6 {[%clk 0:01:59]} 24. Bxe6 {[%clk 0:01:45]}  Bg7 {[%clk 0:02:00]} 25. Rd7 {[%clk 0:01:44]}  Bf6 {[%clk 0:01:59]} 26. Rf3 {[%clk 0:01:42]}  Rab8 {[%clk 0:01:40]} 27. Rb3+ {[%clk 0:01:32]}  Kc5 {[%clk 0:01:40]} 28. Rbxb7 {[%clk 0:01:29]}  Rxb7 {[%clk 0:01:39]} 29. Rxb7 {[%clk 0:01:29]}  hxg4 {[%clk 0:01:39]} 30. Bxg4 {[%clk 0:01:29]}  a5 {[%clk 0:01:34]} 31. c3 {[%clk 0:01:28]}  Rd8 {[%clk 0:01:32]} 32. Kc2 {[%clk 0:01:26]}  Rd5 {[%clk 0:01:28]} 33. a3 {[%clk 0:01:21]}  Re5 {[%clk 0:01:26]} 34. b4+ {[%clk 0:01:17]}  axb4 {[%clk 0:01:26]} 35. axb4+ {[%clk 0:01:17]}  Kd5 {[%clk 0:01:23]} 36. Bf3+ {[%clk 0:01:11]}  Kc4 {[%clk 0:01:15]} 37. Rc7 {[%clk 0:01:09]}  Re6 {[%clk 0:01:11]} 38. b5 {[%clk 0:01:05]}  Kxb5 {[%clk 0:01:10]} 39. Kb3 {[%clk 0:01:00]}  Kb6 {[%clk 0:01:08]} 40. Rc8 {[%clk 0:01:00]}  Kb7 {[%clk 0:01:08]} 41. Rd8 {[%clk 0:00:50]}  Re3 {[%clk 0:01:08]} 42. Bg4 {[%clk 0:00:49]}  Rxc3+ {[%clk 0:01:08]} 43. Kb4 {[%clk 0:00:49]}  Re3 {[%clk 0:01:05]} 44. Kc5 {[%clk 0:00:42]}  Re5+ {[%clk 0:01:03]} 45. Kc4 {[%clk 0:00:42]}  Kb6 {[%clk 0:01:03]} 46. Rb8+ {[%clk 0:00:42]}  Kc7 {[%clk 0:01:02]} 47. Rc8+ {[%clk 0:00:42]}  Kb7 {[%clk 0:01:03]} 48. Rd8 {[%clk 0:00:41]}  Re4+ {[%clk 0:01:02]} 49. Kc5 {[%clk 0:00:40]}  Re5+ {[%clk 0:01:02]} 50. Kc4 {[%clk 0:00:40]} 1/2-1/2


[Site "https://www.chess.com"]